{"text_format":"1","workbook":"xlsx","n_sheets":10,"sheets":["Forma","PPR","Faktura","Preces","Nieki","Firmas sarakst","Cipari-vārdi","Cipari-vārdi_eiro","Eiro kurss","Лист1"],"not_rendered":{"charts":0,"images":0,"macros":1,"external_links":1,"defined_names":19,"comments":1,"pivot_tables":0},"unopened":[],"bounds":{"document_bytes":16777216,"sheet_cells":100000,"rows_first":2000,"rows_last":500,"rows_between":2000,"halvings":0,"cell_chars":16384,"cell_head_chars":4096},"cells_cut":0,"cells_raw":0,"read":"whole","date_system":"1900"}

{"sheet":"Forma","index":0,"n_rows":74,"n_cols":18,"rows_kept":74,"cut":false,"hidden":false,"merged":[[17,17,18,19],[15,17,15,19],[22,18,22,19],[24,18,24,19],[19,2,19,3],[19,4,19,5],[19,6,19,7],[20,2,20,3],[20,4,20,5],[20,6,20,7],[21,2,21,3],[21,4,21,5],[21,6,21,7],[22,2,22,3],[22,4,22,5],[22,6,22,7],[21,8,21,9],[21,10,21,11],[21,12,21,13],[22,8,22,9],[22,10,22,11],[22,12,22,13],[1,10,1,11],[3,10,3,11],[3,4,5,6],[3,2,5,3],[9,5,9,10],[9,16,9,18],[13,5,13,10],[15,5,15,8],[15,12,15,13],[51,5,51,10],[11,5,11,10],[33,5,33,10],[37,7,37,8],[42,5,42,10],[46,7,46,8],[19,8,19,9],[19,10,19,11],[19,12,19,13],[20,8,20,9],[20,10,20,11],[20,12,20,13],[69,5,69,10],[73,7,73,8],[55,7,55,8],[60,5,60,10],[64,7,64,8]]}
[]
[null,null,null,null,null,null,null,null,null,"Datums:",{"$f":" IF(K4>0,K4,TODAY())","v":"2013-08-01"}]
[]
[null,null,"SVM",null,102501,null,null,null,null,"Datuma korekcija:","2013-08-01"]
[]
[null,null,null,null,null,null,null,null,null,"Datums vārdiem:",{"$f":"YEAR(K2)&\". gada \" & DAY(K2) &\". \" & VLOOKUP(Nieki!C2,Nieki!C3:D14,2,FALSE)","v":"2013. gada 1. augustā"}]
[]
[]
[]
[null,null,null,null,"Firmas nosaukums:","\"AT FOREST\"SIA",null,null,null,null,null,null,null,null,null,"Atbildīgā persona","Mihails Ņikitins"]
[]
[null,null,null,null,"Izkraušanas adrese:",""]
[]
[null,null,null,null,"Pārvadātājs:"]
[]
[null,null,null,null,"Auto vadītāja vārds, uzvārds:",null,null,null,null,null,null,"Automobila valsts numurs:",null,null,null,null,null,"Faktūr-Rēķins Nr."]
[]
[]
[null,null,null,"Krotalijas numurs:"]
[]
[]
[null,null,null,null,null,null,null,null,null,null,null,null,null,null,null,null,"EKA čeks"]
[null,null,null,null,null,null,null,null,null,null,null,null,null,null,null,null,null,"Numurs"]
[]
[null,null,null,"Kaušanas kārtas numurs:",null,null,null,null,null,null,null,null,null,null,null,null,null,"Datums"]
[]
[]
[]
[]
[]
[]
[null,null,null,"Pozicija nr. 1:"]
[]
[null,null,null,null,"nosaukums:"]
[]
[null,null,null,null,null,null,"cena, Ls (bez PVN):",null,null,"svars, kg:"]
[]
[null,null,null,null,null,null,"kaušanas datums:"]
[]
[]
[null,null,null,"Pozicija nr. 2:"]
[]
[null,null,null,null,"nosaukums:"]
[]
[null,null,null,null,null,null,"cena, Ls (bez PVN):",null,null,"svars, kg:"]
[]
[null,null,null,null,null,null,"kaušanas datums:"]
[]
[]
[null,null,null,"Pozicija nr. 3:"]
[]
[null,null,null,null,"nosaukums:"]
[]
[null,null,null,null,null,null,"cena, Ls (bez PVN):",null,null,"svars, kg:"]
[]
[null,null,null,null,null,null,"kaušanas datums:"]
[]
[]
[null,null,null,"Pozicija nr. 4:"]
[]
[null,null,null,null,"nosaukums:"]
[]
[null,null,null,null,null,null,"cena, Ls (bez PVN):",null,null,"svars, kg:"]
[]
[null,null,null,null,null,null,"kaušanas datums:"]
[]
[]
[null,null,null,"Pozicija nr. 5:"]
[]
[null,null,null,null,"nosaukums:"]
[]
[null,null,null,null,null,null,"cena, Ls (bez PVN):",null,null,"svars, kg:"]
[]
[null,null,null,null,null,null,"kaušanas datums:"]

{"sheet":"PPR","index":1,"n_rows":74,"n_cols":16,"rows_kept":74,"cut":false,"hidden":false,"merged":[[36,0,36,1],[37,0,37,1],[38,0,38,1],[39,0,39,1],[35,2,35,5],[36,2,36,5],[37,2,37,5],[38,2,38,5],[39,2,39,5],[34,2,34,5],[7,2,7,7],[49,1,49,11],[51,0,51,11],[3,10,3,11],[32,9,32,11],[31,9,31,11],[35,0,35,1],[6,9,7,11],[8,9,13,11],[16,9,17,11],[18,9,23,11],[24,9,24,11],[17,2,17,7],[14,9,14,11],[34,0,34,1],[43,0,47,8],[53,5,54,7],[53,0,54,4],[56,5,56,7],[56,0,56,4],[53,8,54,11],[50,1,50,11],[57,8,57,11],[62,8,62,11],[62,0,62,4],[62,5,62,7],[57,5,57,7],[57,0,57,4],[67,5,67,7],[67,1,67,4],[63,4,66,4],[63,7,66,7],[63,11,66,11]]}
[]
[]
[]
[null,{"$f":"Forma!K6","v":"2013. gada 1. augustā"},null,null,null,null,null,null,null,"Rēķins nr.",{"$f":"IF(Forma!E4>0,Forma!C4&\" \"&Forma!E4,\"\")","v":"SVM 102501"}]
[]
["Preču piegādājs:"]
[null,null,null,null,null,null,null,null,null,"LV 40103316163"]
[null,null,"\"S.V.M. Baltika\" SIA"]
[null,null,null,"Firmas nosaukums",null,null,null,null,null,"A/S \"Swedbank\", HABALV22, LV49HABA0551029087689 "]
[null,"Egļu iela 11, Jaunmārupe, Mārupes novads, Rīgas rajons, LV-2166"]
[null,null,null,"Juridiskā adrese"]
[null,"„Mālkalni”, Drabešu pagasts, Amatas novads, Cēsu rajons (PVD -A 045687)",null,null,null,null,null,null,null,null,null,null,null,null,null," "]
[null,null,null,"Preču izsniegšanas vietas adrese"]
[null,"e-pasts: s.v.m.baltika@inbox.lv; tālr.: (+371) 26763619 "]
[null,null,null,"Kontaktinformācija"]
["Preču saņēmējs:"]
[null,null,null,null,null,null,null,null,null,{"$f":"IF(C18>\"\",IF(VLOOKUP(\"PVN Nr.\",'Firmas sarakst'!$A$1:$AZ$36,MATCH(Forma!$F$10,Firmas,0)+1,FALSE)<=0,\"\",VLOOKUP(\"PVN Nr.\",'Firmas sarakst'!$A$1:$AZ$36,MATCH(Forma!$F$10,Firmas,0)+1,FALSE)),\"\")","v":"LV44103086906"}]
[null,null,{"$f":"IF(Forma!F10>\"\",Forma!F10,\"\")","v":"\"AT FOREST\"SIA"}]
[null,null,null,"Firmas nosaukums",null,null,null,null,null,{"$f":"IF(C18>\"\",IF(VLOOKUP(\"Bankas nosaukums, SWIFT, IBAN\",'Firmas sarakst'!$A$1:$AZ$36,MATCH(Forma!$F$10,Firmas,0)+1,FALSE)<=0,\"\",VLOOKUP(\"Bankas nosaukums, SWIFT, IBAN\",'Firmas sarakst'!$A$1:$AZ$36,MATCH(Forma!$F$10,Firmas,0)+1,FALSE)),\"\")","v":11}]
[null,{"$f":"IF(C18>\"\",IF(VLOOKUP(\"Juridiskā adrese\",'Firmas sarakst'!$A$1:$AZ$36,MATCH(Forma!$F$10,Firmas,0)+1,FALSE)<=0,\"\",VLOOKUP(\"Juridiskā adrese\",'Firmas sarakst'!$A$1:$AZ$36,MATCH(Forma!$F$10,Firmas,0)+1,FALSE)),\"\")","v":"Gaujas iela 7-28,Valmieras,LV-4201;"}]
[null,null,null,"Juridiskā adrese"]
[null,{"$f":"IF(Forma!F12>\"\",Forma!F12,\"\")","v":""}]
[null,null,null,"Preču saņēmšanas vietas adrese"]
[null,{"$f":"IF(C18>\"\",IF(VLOOKUP(\"Kontaktinformācija\",'Firmas sarakst'!$A$1:$AZ$36,MATCH(Forma!$F$10,Firmas,0)+1,FALSE)<=0,\"\",VLOOKUP(\"Kontaktinformācija\",'Firmas sarakst'!$A$1:$AZ$36,MATCH(Forma!$F$10,Firmas,0)+1,FALSE)),\"\")","v":""}]
[null,null,null,"Kontaktinformācija"]
["Pārvadātājs:",null,null,null,null,null,null,null,null," "]
[]
[null,null,{"$f":"IF(Forma!F14>\"\",Forma!F14& \", \"&IF(VLOOKUP(\"PVN Nr.\",'Firmas sarakst'!$A$1:$AZ$36,MATCH(Forma!$F$14,Firmas,0)+1,FALSE)<=0,\"\",VLOOKUP(\"PVN Nr.\",'Firmas sarakst'!$A$1:$AZ$36,MATCH(Forma!$F$14,Firmas,0)+1,FALSE))&\", \"&Forma!M16&\", \"&Forma!F16&\".\",\"\")","v":""}]
[null,null,null,"Firmas nosaukums, PVN numurs, transportlīdzekļa valsts reģistrācijas numurs un transportlīdzekļa vadītāja vārds un uzvārds"]
["Speciālas atzīmes:"]
[]
[null,"Ar priekš apmaku:FR000106;",null,null,null,null,null,null,null,"preču pārdošana"]
[null,null,null,"Samaksas veids un kārtība",null,null,null,null,null,"Saimnieciskā darījuma apraksts"]
[]
["Nr.",null,"Nosaukums",null,null,null,"Kaušanas datums","Izlietot līdz","Mērvienība","Daudzums kg.","Vienības cenas, Ls   (bez PVN)","Kopējā vērtība, Ls (bez PVN)","Kopējā vērtība,EUR (bez PVN)"]
[1,null,"Cūkgaļas muguras karbon.(atdzesēts)",null,null,null,null,"06.10.2013","kg.",200,2.6,{"$f":"IF(C36>\"\",K36*J36,\"\")","v":520},{"$f":"L36/'Eiro kurss'!B2","v":739.89334152907497}]
[{"$f":"IF(C37>\"\",2,\"\")","v":2},null,"Cūkgaļas šķiņķis bez a/k(atdzesēts)",null,null,null,null,"06.10.2013","kg.",400,2.1,{"$f":"IF(C37>\"\",K37*J37,\"\")","v":840},{"$f":"L37/'Eiro kurss'!B2","v":1195.2123209315826}]
[{"$f":"IF(C38>\"\",3,\"\")","v":""},null,null,null,null,null,null,null,null," "," ",null,{"$f":"L38/'Eiro kurss'!B2","v":0}]
[{"$f":"IF(C39>\"\",4,\"\")","v":4},null,"Cūkgaļas krūtiņa ar k.(atdzesēta)",null,null,null,null,"06.10.2013","kg.",305.64499999999998,1.9,{"$f":"IF(C39>\"\",K39*J39,\"\")","v":580.7254999999999},{"$f":"L39/'Eiro kurss'!B2","v":826.29794366565909}]
[{"$f":"IF(C40>\"\",5,\"\")","v":""},null,null,null,null,null,null,null,null,null,null,{"$f":"IF(C40>\"\",K40*J40,\"\")","v":""}]
[]
[null,null,null,null,null,null,null,null,"kopā:",{"$f":"SUM(J36:J40)","v":905.64499999999998},null,{"$f":"IF(SUM(L36:L40)>=0,ROUND(SUM(L36:L40),2),\"\")","v":1940.73},{"$f":"IF(SUM(M36:M40)>=0,ROUND(SUM(M36:M40),2),\"\")","v":2761.4}]
[{"$f":"IF(Forma!C20>\"\",\"Informācija pār preci:\",IF(Forma!C26>\"\",\"Informācija pār preci:\",\"\"))","v":""}]
["Partijas Nr:Sk.marķ.;"]
[]
[null,null,null,null,null,null,null,null,null,null,"PVN 21%",{"$f":"IF(L42>=0,L42*0.21,\"\")","v":407.55329999999998},{"$f":"IF(M42>=0,M42*0.21,\"\")","v":579.89400000000001}]
[]
[null,null,null,null,null,null,null,null,null,null,"pavisam apmaksai",{"$f":"IF(L42>=0,ROUND(L42+L46,2),\"\")","v":2348.2800000000002},{"$f":"IF(M42>=0,ROUND(M42+M46,2),\"\")","v":3341.29}]
[]
[null,{"$f":"'Cipari-vārdi'!A2","v":" Divi tūkstoši trīs simti četrdesmit astoņi lati 28 sant."}]
[null,{"$f":"'Cipari-vārdi_eiro'!A2","v":" Trīs  tūkstoši trīs simti četrdesmit vienseiro  29 cent."}]
["Summa vardiem"]
[]
["Par noformēšanu un preču izniegšanu atbildīgā persona",null,null,null,null,"Par preču pārvadāšanu atbildīgā persona",null,null,"Par preču saņemšanu                                       atbildīgā persona"]
[]
[]
[{"$f":"IF(Forma!Q10>0,Forma!Q10,\"\")","v":"Mihails Ņikitins"},null,null,null,null,{"$f":"IF(Forma!F16>0,Forma!F16,\"\")","v":""}]
["vārds, uzvārds",null,null,null,null,"vārds, uzvārds",null,null,"vārds, uzvārds"]
[]
[]
[]
[]
["paraksts",null,null,null,null,"paraksts",null,null,"paraksts"]
[null,null,null,null,"Z. V.",null,null,"Z. V.",null,null,null,"Z. V."]
[]
[]
[]
[null,{"$f":"Forma!K6","v":"2013. gada 1. augustā"},null,null,null,{"$f":"Forma!K6","v":"2013. gada 1. augustā"},null,null,"20____.gada ______. _________________"]
[]
[null,null,null,null,null,null,null,null,null,null,null,null," "]
[]
[null,"Atdzesētai gaļai uzglabāšanas temperatūra 0...+7 C. Atdzesētiem blakusproduktiem uzglabāšanas temperatūra 0...+3 C."]
[null,"Saldetiem blakusproduktiem uzglabāšanas temperatūra -18 C."]
[null,"Uznēmūma istrādāta un darbojas paškontroles sistēma, kuras pamatā iekļauti HACCP principi."]

{"sheet":"Faktura","index":2,"n_rows":61,"n_cols":10,"rows_kept":61,"cut":false,"hidden":false,"merged":[[60,7,60,9],[49,7,49,9],[54,7,54,9],[50,7,50,9],[55,7,55,9],[56,4,59,4],[56,9,59,9],[46,0,47,9],[43,0,43,9],[31,0,31,1],[31,2,31,5],[32,0,32,1],[32,2,32,5],[42,1,42,9],[28,0,28,1],[28,2,28,5],[29,0,29,1],[29,2,29,5],[30,0,30,1],[30,2,30,5],[27,0,27,1],[27,2,27,5],[3,8,3,9],[6,7,7,9],[7,2,7,5],[8,7,11,9],[12,7,12,9],[14,7,15,9],[15,2,15,5],[16,7,19,9],[20,7,20,9],[24,7,24,9],[25,7,25,9]]}
[]
[]
[]
[null,{"$f":"Forma!K6","v":"2013. gada 1. augustā"},null,null,null,null,null,"Faktūr - Rēķins nr.",{"$f":"IF(Forma!R18>0,\"FR \"&Forma!R18,\"\")","v":""}]
[]
["Preču piegādājs:"]
[null,null,null,null,null,null,null,"LV 40103316163"]
[null,null,"\"S.V.M. Baltika\" SIA"]
[null,null,null,"Firmas nosaukums",null,null,null,"A/S \"Swedbank\", HABALV22, LV49HABA0551029087689 "]
[null,"Egļu iela 11, Jaunmārupe, Mārupes novads, Rīgas rajons, LV-2166"]
[null,null,null,"Juridiskā adrese"]
[null,"e-pasts: s.v.m.baltika@inbox.lv; tālr.: (+371) 26763619 "]
[null,null,null,"Kontaktinformācija"]
["Preču saņēmējs:"]
[null,null,null,null,null,null,null,{"$f":"IF(C16>\"\",IF(VLOOKUP(\"PVN Nr.\",'Firmas sarakst'!$A$1:$AZ$36,MATCH(Forma!$F$10,Firmas,0)+1,FALSE)<=0,\"\",VLOOKUP(\"PVN Nr.\",'Firmas sarakst'!$A$1:$AZ$36,MATCH(Forma!$F$10,Firmas,0)+1,FALSE)),\"\")","v":"LV44103086906"}]
[null,null,{"$f":"IF(Forma!F10>\"\",Forma!F10,\"\")","v":"\"AT FOREST\"SIA"}]
[null,null,null,"Firmas nosaukums",null,null,null,{"$f":"IF(C16>\"\",IF(VLOOKUP(\"Bankas nosaukums, SWIFT, IBAN\",'Firmas sarakst'!$A$1:$AZ$36,MATCH(Forma!$F$10,Firmas,0)+1,FALSE)<=0,\"\",VLOOKUP(\"Bankas nosaukums, SWIFT, IBAN\",'Firmas sarakst'!$A$1:$AZ$36,MATCH(Forma!$F$10,Firmas,0)+1,FALSE)),\"\")","v":11}]
[null,{"$f":"IF(C16>\"\",IF(VLOOKUP(\"Juridiskā adrese\",'Firmas sarakst'!$A$1:$AZ$36,MATCH(Forma!$F$10,Firmas,0)+1,FALSE)<=0,\"\",VLOOKUP(\"Juridiskā adrese\",'Firmas sarakst'!$A$1:$AZ$36,MATCH(Forma!$F$10,Firmas,0)+1,FALSE)),\"\")","v":"Gaujas iela 7-28,Valmieras,LV-4201;"}]
[null,null,null,"Juridiskā adrese"]
[null,{"$f":"IF(C16>\"\",IF(VLOOKUP(\"Kontaktinformācija\",'Firmas sarakst'!$A$1:$AZ$36,MATCH(Forma!$F$10,Firmas,0)+1,FALSE)<=0,\"\",VLOOKUP(\"Kontaktinformācija\",'Firmas sarakst'!$A$1:$AZ$36,MATCH(Forma!$F$10,Firmas,0)+1,FALSE)),\"\")","v":""}]
[null,null,null,"Kontaktinformācija"]
[]
["Speciālas atzīmes:"]
[]
[null,{"$f":"IF(C16>\"\",\"apmaksāt līdz: \"&TEXT(Forma!K2+1,\"ДД.ММ.ГГГГ\"),\"\")","v":"apmaksāt līdz: 02.08.2013"},null,null,null,null,null,"preču pārdošana"]
[null,null,null,"Samaksas veids un kartiba",null,null,null,"Saimnieciskā darījuma apraksts"]
[]
["Nr.",null,"Nosaukums",null,null,null,"Mērvienība","Daudzums, kg.","Vienības cenas, Ls   (bez PVN)","Kopējā vērtība, Ls (bez PVN)"]
[{"$f":"IF(C29>\"\",1,\"\")","v":1},null,"Liellopu kotlešu gaļa II šķ.(atdzesēta)",null,null,null,"kg.",1400,1.7,{"$f":"IF(C29>\"\",I29*H29,\"\")","v":2380}]
[{"$f":"IF(C30>\"\",2,\"\")","v":""},null,{"$f":"IF(Forma!F43>0,Forma!F43,\"\")","v":""},null,null,null,{"$f":"IF(C30>\"\",VLOOKUP(C30,Preces!$A$1:$C$50,3,FALSE),\"\")","v":""},{"$f":"IF(C30>\"\",Forma!K45,\"\")","v":""},{"$f":"IF(C30>\"\",Forma!H45,\"\")","v":""},{"$f":"IF(C30>\"\",H30*I30,\"\")","v":""}]
[{"$f":"IF(C31>\"\",3,\"\")","v":""},null,{"$f":"IF(Forma!F52>0,Forma!F52,\"\")","v":""},null,null,null,{"$f":"IF(C31>\"\",VLOOKUP(C31,Preces!$A$1:$C$50,3,FALSE),\"\")","v":""},{"$f":"IF(C31>\"\",Forma!K54,\"\")","v":""},{"$f":"IF(C31>\"\",Forma!H54,\"\")","v":""},{"$f":"IF(C31>\"\",H31*I31,\"\")","v":""}]
[{"$f":"IF(C32>\"\",4,\"\")","v":""},null,{"$f":"IF(Forma!F61>0,Forma!F61,\"\")","v":""},null,null,null,{"$f":"IF(C32>\"\",VLOOKUP(C32,Preces!$A$1:$C$50,3,FALSE),\"\")","v":""},{"$f":"IF(C32>\"\",Forma!K63,\"\")","v":""},{"$f":"IF(C32>\"\",Forma!H63,\"\")","v":""},{"$f":"IF(C32>\"\",H32*I32,\"\")","v":""}]
[{"$f":"IF(C33>\"\",5,\"\")","v":""},null,{"$f":"IF(Forma!F70>0,Forma!F70,\"\")","v":""},null,null,null,{"$f":"IF(C33>\"\",VLOOKUP(C33,Preces!$A$1:$C$50,3,FALSE),\"\")","v":""},{"$f":"IF(C33>\"\",Forma!K72,\"\")","v":""},{"$f":"IF(C33>\"\",Forma!H72,\"\")","v":""},{"$f":"IF(C33>\"\",H33*I33,\"\")","v":""}]
[]
[null,null,null,null,null,null,"kopā:",{"$f":"SUM(H29:H33)","v":1400},null,{"$f":"IF(SUM(J29:J33)>=0,ROUND(SUM(J29:J33),2),\"\")","v":2380}]
[{"$f":"IF(Forma!C20>\"\",\"Informācija pār preci:\",IF(Forma!C26>\"\",\"Informācija pār preci:\",\"\"))","v":""}]
[{"$f":"IF(Forma!C20>\"\",\"Krotalijas numurs: \",\"\")&IF(Forma!C20>\"\",Forma!C20,\"\")&IF(Forma!E20>\"\",\", \"&Forma!E20,\"\")&IF(Forma!G20>\"\",\", \"&Forma!G20,\"\")&IF(Forma!I20>\"\",\", \"&Forma!I20,\"\")&IF(Forma!K20>\"\",\", \"&Forma!K20,\"\")&IF(Forma!M20>\"\",\", \"&Forma!M20,\"\")&IF(Forma!C21>\"\",\", \"&Forma!C21,\"\")&IF(Forma!E21>\"\",\", \"&Forma!E21,\"\")&IF(Forma!G21>\"\",\", \"&Forma!G21,\"\")&IF(Forma!I21>\"\",\", \"&Forma!I21,\"\")&IF(Forma!K21>\"\",\", \"&Forma!K21,\"\")&IF(Forma!M21>\"\",\", \"&Forma!M21,\"\")&IF(Forma!C22>\"\",\", \"&Forma!C22,\"\")&IF(Forma!E22>\"\",\", \"&Forma!E22,\"\")&IF(Forma!G22>\"\",\", \"&Forma!G22,\"\")&IF(Forma!I22>\"\",\", \"&Forma!I22,\"\")&IF(Forma!K22>\"\",\", \"&Forma!K22,\"\")&IF(Forma!M22>\"\",\", \"&Forma!M22,\"\")&IF(Forma!C23>\"\",\", \"&Forma!C23,\"\")&IF(Forma!E23>\"\",\", \"&Forma!E23,\"\")&IF(Forma!G23>\"\",\", \"&Forma!G23,\"\")&IF(Forma!I23>\"\",\", \"&Forma!I23,\"\")&IF(Forma!K23>\"\",\", \"&Forma!K23,\"\")&IF(Forma!C26>\"\",\" Kaušanas kārtas numurs: \",\"\")&IF(Forma!C26>\"\",Forma!C26,\"\")&IF(Forma!D26>\"\",\", \"&Forma!D26,\"\")&IF(Forma!E26>\"\",\", \"&Forma!E26,\"\")&IF(Forma!F26>\"\",\", \"&Forma!F26,\"\")&IF(Forma!G26>\"\",\", \"&Forma!G26,\"\")&IF(Forma!H26>\"\",\", \"&Forma!H26,\"\")&IF(Forma!I26>\"\",\", \"&Forma!I26,\"\")&IF(Forma!J26>\"\",\", \"&Forma!J26,\"\")&IF(Forma!K26>\"\",\", \"&Forma!K26,\"\")&IF(Forma!L26>\"\",\", \"&Forma!L26,\"\")&IF(Forma!M26>\"\",\", \"&Forma!M26,\"\")&IF(Forma!N26>\"\",\", \"&Forma!N26,\"\")&IF(Forma!C27>\"\",\", \"&Forma!C27,\"\")&IF(Forma!D27>\"\",\", \"&Forma!D27,\"\")&IF(Forma!E27>\"\",\", \"&Forma!E27,\"\")&IF(Forma!F27>\"\",\", \"&Forma!F27,\"\")&IF(Forma!G27>\"\",\", \"&Forma!G27,\"\")","v":""}]
[]
[null,null,null,null,null,null,null,null,"PVN 21%",{"$f":"IF(J35>=0,J35*0.21,\"\")","v":499.79999999999995}]
[]
[null,null,null,null,null,null,null,null,"pavisam apmaksai",{"$f":"IF(J35>=0,ROUND(J35+J39,2),\"\")","v":2879.8}]
[]
[]
["Summa vardiem"]
[]
[]
["Par noformēšanu atbildīgā persona"]
[]
[]
[null,null,null,null,null,null,null,{"$f":"IF(Forma!Q10>0,Forma!Q10,\"\")","v":"Mihails Ņikitins"}]
[null,null,null,null,null,null,null,"vārds, uzvārds"]
[]
[]
[]
[]
[null,null,null,null,null,null,null,"paraksts"]
[null,null,null,null,null,null,null,null,null,"Z. V."]
[]
[]
[]
[null,null,null,null,null,null,null,{"$f":"Forma!K6","v":"2013. gada 1. augustā"}]

{"sheet":"Preces","index":3,"n_rows":29,"n_cols":3,"rows_kept":29,"cut":false,"hidden":false,"merged":[]}
["Nosaukums","Term.","Merv."]
["Liellopu gaļas liemenis (atdzesēts)",6,"kg."]
["Jaunlopu gaļas liemenis (atdzesēts)",6,"kg."]
["Teļa gaļas liemenis (atdzesēts)",6,"kg."]
["Jēra gaļa liemenis (atdzesēts)",6,"kg."]
["Aita gaļas liemenis (atdzesēts)",6,"kg."]
["Cūkgaļas liemenis (atdzesēts)",6,"kg."]
["Liellopu subprodukti (atdzesēti)",3,"kg."]
["Cūkgaļas subprodukti (atdzesēti)",3,"kg."]
["Jēra gaļa subprodukti (atdzesēti)",3,"kg."]
["Liellopu mēle (atdzesēti)",3,"kg."]
["Liellopu aste (atdzesēti)",3,"kg."]
["Liellopu aknas (atdzesēti)",3,"kg."]
["Liellopu sirds (atdzesēti)",3,"kg."]
["Liellopu nieres (atdzesēti)",3,"kg."]
["Liellopu plaušas (atdzesēti)",3,"kg."]
["Cūku galvas (atdzesēti)",3,"kg."]
["Cūku mēle (atdzesēti)",3,"kg."]
["Cūku aknas (atdzesēti)",3,"kg."]
["Cūku sirds (atdzesēti)",3,"kg."]
["Cūku ausis (atdzesēti)",3,"kg."]
["Cūku nieres (atdzesēti)",3,"kg."]
["Jēra mēle (atdzesēti)",3,"kg."]
["Jēra aknas (atdzesēti)",3,"kg."]
["Jēra sirds (atdzesēti)",3,"kg."]
["Jēra ausis (atdzesēti)",3,"kg."]
["Jēra nieres (atdzesēti)",3,"kg."]
["Blakusprodukti III kat. (atdzesēti)",3,"kg."]
["Liellopu  ādas","nav.","kg."]

{"sheet":"Nieki","index":4,"n_rows":14,"n_cols":12,"rows_kept":14,"cut":false,"hidden":false,"merged":[[1,2,1,3],[0,2,0,3]]}
["Datums",null,"Mēnesis",null,null,"Atbildīgā persona",null,"Izkraušana",null,"Autovāditajs",null,"Valsts numurs (auto)"]
[{"$f":"PPR!B4","v":"2013. gada 1. augustā"},null,{"$f":"MONTH(Forma!K2)","v":8},null,null,"Mihails Ņikitins",null,{"$f":"IF(VLOOKUP(\"Izkraušanas vieta 1\",'Firmas sarakst'!$A$1:$AZ$36,MATCH(Forma!$F$10,Firmas,0)+1,FALSE)<=0,\"\",VLOOKUP(\"Izkraušanas vieta 1\",'Firmas sarakst'!$A$1:$AZ$36,MATCH(Forma!$F$10,Firmas,0)+1,FALSE))","v":""},null,{"$f":"IF(VLOOKUP(\"Autoboliļa vadītaja vārds un uzvārds 1\",'Firmas sarakst'!$A$1:$AZ$36,MATCH(Forma!$F$14,Firmas,0)+1,FALSE)<=0,\"\",VLOOKUP(\"Autoboliļa vadītaja vārds un uzvārds 1\",'Firmas sarakst'!$A$1:$AZ$36,MATCH(Forma!$F$14,Firmas,0)+1,FALSE))","v":{"$error":"#N/A"}},null,{"$f":"IF(VLOOKUP(\"Autoboliļa reģistrācijas valsts numurs 1\",'Firmas sarakst'!$A$1:$AZ$36,MATCH(Forma!$F$14,Firmas,0)+1,FALSE)<=0,\"\",VLOOKUP(\"Autoboliļa reģistrācijas valsts numurs 1\",'Firmas sarakst'!$A$1:$AZ$36,MATCH(Forma!$F$14,Firmas,0)+1,FALSE))","v":{"$error":"#N/A"}}]
[null,null,1,"janvārī",null,"Jurijs Kidelis",null,{"$f":"IF(VLOOKUP(\"Izkraušanas vieta 2\",'Firmas sarakst'!$A$1:$AZ$36,MATCH(Forma!$F$10,Firmas,0)+1,FALSE)<=0,\"\",VLOOKUP(\"Izkraušanas vieta 2\",'Firmas sarakst'!$A$1:$AZ$36,MATCH(Forma!$F$10,Firmas,0)+1,FALSE))","v":""},null,{"$f":"IF(VLOOKUP(\"Autoboliļa vadītaja vārds un uzvārds 2\",'Firmas sarakst'!$A$1:$AZ$36,MATCH(Forma!$F$14,Firmas,0)+1,FALSE)<=0,\"\",VLOOKUP(\"Autoboliļa vadītaja vārds un uzvārds 2\",'Firmas sarakst'!$A$1:$AZ$36,MATCH(Forma!$F$14,Firmas,0)+1,FALSE))","v":{"$error":"#N/A"}},null,{"$f":"IF(VLOOKUP(\"Autoboliļa reģistrācijas valsts numurs 2\",'Firmas sarakst'!$A$1:$AZ$36,MATCH(Forma!$F$14,Firmas,0)+1,FALSE)<=0,\"\",VLOOKUP(\"Autoboliļa reģistrācijas valsts numurs 2\",'Firmas sarakst'!$A$1:$AZ$36,MATCH(Forma!$F$14,Firmas,0)+1,FALSE))","v":{"$error":"#N/A"}}]
[null,null,2,"februārī",null,null,null,{"$f":"IF(VLOOKUP(\"Izkraušanas vieta 3\",'Firmas sarakst'!$A$1:$AZ$36,MATCH(Forma!$F$10,Firmas,0)+1,FALSE)<=0,\"\",VLOOKUP(\"Izkraušanas vieta 3\",'Firmas sarakst'!$A$1:$AZ$36,MATCH(Forma!$F$10,Firmas,0)+1,FALSE))","v":""},null,{"$f":"IF(VLOOKUP(\"Autoboliļa vadītaja vārds un uzvārds 3\",'Firmas sarakst'!$A$1:$AZ$36,MATCH(Forma!$F$14,Firmas,0)+1,FALSE)<=0,\"\",VLOOKUP(\"Autoboliļa vadītaja vārds un uzvārds 3\",'Firmas sarakst'!$A$1:$AZ$36,MATCH(Forma!$F$14,Firmas,0)+1,FALSE))","v":{"$error":"#N/A"}},null,{"$f":"IF(VLOOKUP(\"Autoboliļa reģistrācijas valsts numurs 3\",'Firmas sarakst'!$A$1:$AZ$36,MATCH(Forma!$F$14,Firmas,0)+1,FALSE)<=0,\"\",VLOOKUP(\"Autoboliļa reģistrācijas valsts numurs 3\",'Firmas sarakst'!$A$1:$AZ$36,MATCH(Forma!$F$14,Firmas,0)+1,FALSE))","v":{"$error":"#N/A"}}]
[null,null,3,"martā",null,null,null,{"$f":"IF(VLOOKUP(\"Izkraušanas vieta 4\",'Firmas sarakst'!$A$1:$AZ$36,MATCH(Forma!$F$10,Firmas,0)+1,FALSE)<=0,\"\",VLOOKUP(\"Izkraušanas vieta 4\",'Firmas sarakst'!$A$1:$AZ$36,MATCH(Forma!$F$10,Firmas,0)+1,FALSE))","v":""},null,{"$f":"IF(VLOOKUP(\"Autoboliļa vadītaja vārds un uzvārds 4\",'Firmas sarakst'!$A$1:$AZ$36,MATCH(Forma!$F$14,Firmas,0)+1,FALSE)<=0,\"\",VLOOKUP(\"Autoboliļa vadītaja vārds un uzvārds 4\",'Firmas sarakst'!$A$1:$AZ$36,MATCH(Forma!$F$14,Firmas,0)+1,FALSE))","v":{"$error":"#N/A"}},null,{"$f":"IF(VLOOKUP(\"Autoboliļa reģistrācijas valsts numurs 4\",'Firmas sarakst'!$A$1:$AZ$36,MATCH(Forma!$F$14,Firmas,0)+1,FALSE)<=0,\"\",VLOOKUP(\"Autoboliļa reģistrācijas valsts numurs 4\",'Firmas sarakst'!$A$1:$AZ$36,MATCH(Forma!$F$14,Firmas,0)+1,FALSE))","v":{"$error":"#N/A"}}]
[null,null,4,"aprīlī",null,null,null,{"$f":"IF(VLOOKUP(\"Izkraušanas vieta 5\",'Firmas sarakst'!$A$1:$AZ$36,MATCH(Forma!$F$10,Firmas,0)+1,FALSE)<=0,\"\",VLOOKUP(\"Izkraušanas vieta 5\",'Firmas sarakst'!$A$1:$AZ$36,MATCH(Forma!$F$10,Firmas,0)+1,FALSE))","v":""},null,{"$f":"IF(VLOOKUP(\"Autoboliļa vadītaja vārds un uzvārds 5\",'Firmas sarakst'!$A$1:$AZ$36,MATCH(Forma!$F$14,Firmas,0)+1,FALSE)<=0,\"\",VLOOKUP(\"Autoboliļa vadītaja vārds un uzvārds 5\",'Firmas sarakst'!$A$1:$AZ$36,MATCH(Forma!$F$14,Firmas,0)+1,FALSE))","v":{"$error":"#N/A"}},null,{"$f":"IF(VLOOKUP(\"Autoboliļa reģistrācijas valsts numurs 5\",'Firmas sarakst'!$A$1:$AZ$36,MATCH(Forma!$F$14,Firmas,0)+1,FALSE)<=0,\"\",VLOOKUP(\"Autoboliļa reģistrācijas valsts numurs 5\",'Firmas sarakst'!$A$1:$AZ$36,MATCH(Forma!$F$14,Firmas,0)+1,FALSE))","v":{"$error":"#N/A"}}]
[null,null,5,"maijā",null,null,null,{"$f":"IF(VLOOKUP(\"Izkraušanas vieta 6\",'Firmas sarakst'!$A$1:$AZ$36,MATCH(Forma!$F$10,Firmas,0)+1,FALSE)<=0,\"\",VLOOKUP(\"Izkraušanas vieta 6\",'Firmas sarakst'!$A$1:$AZ$36,MATCH(Forma!$F$10,Firmas,0)+1,FALSE))","v":""},null,{"$f":"IF(VLOOKUP(\"Autoboliļa vadītaja vārds un uzvārds 6\",'Firmas sarakst'!$A$1:$AZ$36,MATCH(Forma!$F$14,Firmas,0)+1,FALSE)<=0,\"\",VLOOKUP(\"Autoboliļa vadītaja vārds un uzvārds 6\",'Firmas sarakst'!$A$1:$AZ$36,MATCH(Forma!$F$14,Firmas,0)+1,FALSE))","v":{"$error":"#N/A"}},null,{"$f":"IF(VLOOKUP(\"Autoboliļa reģistrācijas valsts numurs 6\",'Firmas sarakst'!$A$1:$AZ$36,MATCH(Forma!$F$14,Firmas,0)+1,FALSE)<=0,\"\",VLOOKUP(\"Autoboliļa reģistrācijas valsts numurs 6\",'Firmas sarakst'!$A$1:$AZ$36,MATCH(Forma!$F$14,Firmas,0)+1,FALSE))","v":{"$error":"#N/A"}}]
[null,null,6,"jūnijā",null,null,null,{"$f":"IF(VLOOKUP(\"Izkraušanas vieta 7\",'Firmas sarakst'!$A$1:$AZ$36,MATCH(Forma!$F$10,Firmas,0)+1,FALSE)<=0,\"\",VLOOKUP(\"Izkraušanas vieta 7\",'Firmas sarakst'!$A$1:$AZ$36,MATCH(Forma!$F$10,Firmas,0)+1,FALSE))","v":""},null,{"$f":"IF(VLOOKUP(\"Autoboliļa vadītaja vārds un uzvārds 7\",'Firmas sarakst'!$A$1:$AZ$36,MATCH(Forma!$F$14,Firmas,0)+1,FALSE)<=0,\"\",VLOOKUP(\"Autoboliļa vadītaja vārds un uzvārds 7\",'Firmas sarakst'!$A$1:$AZ$36,MATCH(Forma!$F$14,Firmas,0)+1,FALSE))","v":{"$error":"#N/A"}},null,{"$f":"IF(VLOOKUP(\"Autoboliļa reģistrācijas valsts numurs 7\",'Firmas sarakst'!$A$1:$AZ$36,MATCH(Forma!$F$14,Firmas,0)+1,FALSE)<=0,\"\",VLOOKUP(\"Autoboliļa reģistrācijas valsts numurs 7\",'Firmas sarakst'!$A$1:$AZ$36,MATCH(Forma!$F$14,Firmas,0)+1,FALSE))","v":{"$error":"#N/A"}}]
[null,null,7,"jūlijā",null,null,null,{"$f":"IF(VLOOKUP(\"Izkraušanas vieta 8\",'Firmas sarakst'!$A$1:$AZ$36,MATCH(Forma!$F$10,Firmas,0)+1,FALSE)<=0,\"\",VLOOKUP(\"Izkraušanas vieta 8\",'Firmas sarakst'!$A$1:$AZ$36,MATCH(Forma!$F$10,Firmas,0)+1,FALSE))","v":""},null,{"$f":"IF(VLOOKUP(\"Autoboliļa vadītaja vārds un uzvārds 8\",'Firmas sarakst'!$A$1:$AZ$36,MATCH(Forma!$F$14,Firmas,0)+1,FALSE)<=0,\"\",VLOOKUP(\"Autoboliļa vadītaja vārds un uzvārds 8\",'Firmas sarakst'!$A$1:$AZ$36,MATCH(Forma!$F$14,Firmas,0)+1,FALSE))","v":{"$error":"#N/A"}},null,{"$f":"IF(VLOOKUP(\"Autoboliļa reģistrācijas valsts numurs 8\",'Firmas sarakst'!$A$1:$AZ$36,MATCH(Forma!$F$14,Firmas,0)+1,FALSE)<=0,\"\",VLOOKUP(\"Autoboliļa reģistrācijas valsts numurs 8\",'Firmas sarakst'!$A$1:$AZ$36,MATCH(Forma!$F$14,Firmas,0)+1,FALSE))","v":{"$error":"#N/A"}}]
[null,null,8,"augustā",null,null,null,{"$f":"IF(VLOOKUP(\"Izkraušanas vieta 9\",'Firmas sarakst'!$A$1:$AZ$36,MATCH(Forma!$F$10,Firmas,0)+1,FALSE)<=0,\"\",VLOOKUP(\"Izkraušanas vieta 9\",'Firmas sarakst'!$A$1:$AZ$36,MATCH(Forma!$F$10,Firmas,0)+1,FALSE))","v":""},null,{"$f":"IF(VLOOKUP(\"Autoboliļa vadītaja vārds un uzvārds 9\",'Firmas sarakst'!$A$1:$AZ$36,MATCH(Forma!$F$14,Firmas,0)+1,FALSE)<=0,\"\",VLOOKUP(\"Autoboliļa vadītaja vārds un uzvārds 9\",'Firmas sarakst'!$A$1:$AZ$36,MATCH(Forma!$F$14,Firmas,0)+1,FALSE))","v":{"$error":"#N/A"}},null,{"$f":"IF(VLOOKUP(\"Autoboliļa reģistrācijas valsts numurs 9\",'Firmas sarakst'!$A$1:$AZ$36,MATCH(Forma!$F$14,Firmas,0)+1,FALSE)<=0,\"\",VLOOKUP(\"Autoboliļa reģistrācijas valsts numurs 9\",'Firmas sarakst'!$A$1:$AZ$36,MATCH(Forma!$F$14,Firmas,0)+1,FALSE))","v":{"$error":"#N/A"}}]
[null,null,9,"septembrī",null,null,null,{"$f":"IF(VLOOKUP(\"Izkraušanas vieta 10\",'Firmas sarakst'!$A$1:$AZ$36,MATCH(Forma!$F$10,Firmas,0)+1,FALSE)<=0,\"\",VLOOKUP(\"Izkraušanas vieta 10\",'Firmas sarakst'!$A$1:$AZ$36,MATCH(Forma!$F$10,Firmas,0)+1,FALSE))","v":""},null,{"$f":"IF(VLOOKUP(\"Autoboliļa vadītaja vārds un uzvārds 10\",'Firmas sarakst'!$A$1:$AZ$36,MATCH(Forma!$F$14,Firmas,0)+1,FALSE)<=0,\"\",VLOOKUP(\"Autoboliļa vadītaja vārds un uzvārds 10\",'Firmas sarakst'!$A$1:$AZ$36,MATCH(Forma!$F$14,Firmas,0)+1,FALSE))","v":{"$error":"#N/A"}},null,{"$f":"IF(VLOOKUP(\"Autoboliļa reģistrācijas valsts numurs 10\",'Firmas sarakst'!$A$1:$AZ$36,MATCH(Forma!$F$14,Firmas,0)+1,FALSE)<=0,\"\",VLOOKUP(\"Autoboliļa reģistrācijas valsts numurs 10\",'Firmas sarakst'!$A$1:$AZ$36,MATCH(Forma!$F$14,Firmas,0)+1,FALSE))","v":{"$error":"#N/A"}}]
[null,null,10,"oktobrī"]
[null,null,11,"novembrī"]
[null,null,12,"decembrī"]

{"sheet":"Firmas sarakst","index":5,"n_rows":36,"n_cols":52,"rows_kept":36,"cut":false,"hidden":false,"merged":[]}
["Firmas nosaukums","\"LANS pluss\" SIA","\"Zaļie krastiņi\"SIA","\"ALLFRESH PLUS\" SIA","\"G.A.L.\" SIA","\"Kokneses Miesnieks\" SIA","\"Lāsa B\" IK","\"SABIEDRĪBA MĀRUPE\" SIA","\"GRĀVENDĀLE\" SIA","\"Savati M\" SIA","\"FOREVERS\" SIA","\"RABIK-3\" SIA","\"AFGANIS\"SIA","\"Saules Sveces\"I/K","\"Ritales\"A/S","\"Lēdurgas miesnieks\" SIA","\"Fitness Life\"SIA","\"Gauja AB\"","\"Pārtikas Kompānija\"SIA","\"Vjačiks\"IK","\"Vinto\"SIA","\"MANANA\"SIA","\"DAAPS\"SIA","\"Gaļas nams-Ādaži\"SIA","\"Greis K\"SIA","\"JR Projects\" SIA","\"VK Serviss\"SIA","\"SNIFS\" SIA","\"Varpas N\"SIA","\"Matadors\"SIA","\"Gaļas pārstrādes uzņēmums Nākotne\" SIA","\"Rāmavas\" Z/S","\"BRANGAIS\" IK","\"LEJAS-ROZES\"SIA","\"AT FOREST\"SIA","\"HARTVIK-F\" SIA","\"MARNO\" SIA","\"Baltijas jūras produkti\"SIA","\"AGRO TRANS A\"SIA","\"Andriņi\" Z/S","\"SHARDO\" SIA","\"Ozolmeži 92\" SIA","\"Nimaks\" SIA","\"Kapparis\" SIA","\"Kuršu zeme\" SIA","\"HVV plus\" SIA","\"Golmi\" SIA","\"E+T\"SIA","\"RENNE\" SIA","\"SINE\" SIA","\"Turaidas Pils\" SIA","\"ARATI\" SIA"]
["Juridiskā adrese","Centrāltirgus iela 3-10, Rīga, LV-1050","Stirnu iela 38-3,Rīga,LV-1084","S.Eizenšteina 77-100;Rīga LV-1079;","Rīgas raj., Mārupes pag., Daugavas ielā 27-1, LV-2169","1905.gada iela 33,Koknese,Kokneses pag.,LV-5113;","Maza Nometņu iela 42-3, Rīga, LV-1002","Mazcenu aleja 37,Jaunmārupe, Mārupes novads, Rīgas rajons, LV-2166","Bukaišu 2,Rīga","\"Ādu ģērētava\" Mārupes pagasts, Rīgas rajons, LV-2167","Granīta ielā 9a, Rīga , LV-1057","Gravas iela 2,Baldones nov.,LV-2125","Dzirciema iela 71-74,Rīga,LV-1055","Vaļņa iela 33-3,Cēsis,LV-4001","Dobeles šos.2,Jēlgava,LV-3007","\"Cepli\", Limbažu raj., Lēdurgas pag., LV-4012","Loka iela 5-16,Cēsis,Cēsu rajons,LV-4101","Centra ielā 8,Inčukalna pag.,Rīgas raj.,LV-2140","Mellužu ielā 1,Rīga,LV-1067","P.Roziša 13-4,Liepas pag.Priekuļu nov.","Marsa gatve 12-28,Rīga,LV-1082","Preiļi,Aglonas iela 29-49;","Līduma 16/1,Rīga LV-1079","Mellužu iela 1F,Rīga,LV-1067","Enerģētiķu 4-74,Salaspils","Mārupe,Zeltrītu 8-3,LV-2167","Rīga,Līksnas 11,LV-1003","Skolas ielā 11-2,Bauska,LV-3901","\"Vārpas\"Vecates pag.,Valmieras raj.,LV-4211","\"Ievas\" Katvaru pag.,Limbažu raj.,LV-4060","Uzvaras ielā 2, Dobele, Dobeles raj., LV-3701","\"Rāmavas\", Limbažu pagasts, Limbažu rajons, LV-4020","Burtnieku nov.,Burtnieku pag.,Celmiņi-2.","Lejas Rozes,Raunas pagasts,Raunas novads,LV 4130","Gaujas iela 7-28,Valmieras,LV-4201;","Brīvbas gatve 216, Rīga, LV-1039","Krustpils ielā 89 a,Rīga,LV-1057.","Stabu ielā 49-32,Rīga,LV-1011","Čiekurkalna 1.līnija 54-4, Rīga,LV-1026","Valmieras raj.,Koceņu pag.,LV 4220","Rāmuļu iela 3a, Rīga, LV-1005","Ventas 8/10,Sigulda,LV-2150","Lubānas ielā 137-25, Rīga, LV-1021","Jūrmalas iela14, Babītes pag .,LV-2107 ","\"Cerības\" Pūres pag., Tukuma rajons, LV-3124","Dienvidu iela 5 k.1 - 48, Salaspils, LV-2121","Staiceles ielā 1-1, Rīga, LV-1035","\"ESTI\"Ciemupe,Ogres nov.,","Tērbatas ielā 93/95 - 23, Rīga, LV-1001","Smiltene,Daugavas 1","\"Turaudas\" Mārupes novads, LV-2167","Višķu iela 11-28,Rīga"]
["Kontaktinformācija","e-pasts: info@lanspluss.lv, (+371) 67215117",null,null,"Talr.: (+371) 67934460",null,null,"Tālr.: (+371) 29510600, fakss: (+371) 67933109"]
["PVN Nr.","LV 40003728367","LV40003634678","LV 50103245341","LV 40103045117",40103416785,"LV 40002077814","LV40103045371 ","LV40003030914","LV 40003718960","LV 40003307535","LV50103498001","LV 40003596592","LV 44102032215","LV 40103016512",44103033788,"LV 44103053318","LV 40003306830","LV 40003599531","LV44102033653","LV 40003165885","LV41503043229","LV40003572452","LV40103243419","LV40003528952","LV40103443980","LV40003388131","LV43603007472","LV44101016073","LV54102016481","LV40003113629",46601007193,44102033507,44101023889,"LV44103086906",40003247429,"LV40103013751",40003283241,50103435171,44101024969,40103269066,40103608953,40003676101,"LV40003770858",40003519593,"LV 50002033351",40103123801,40103535753,40003599917,44103014804,"LV 40003531473","LV40103259087"]
["Bankas nosaukums, SWIFT, IBAN","A/S \"Swedbank\", HABALV22, LV03HABA0551009322924","A/S\"SEB banka\";UNLALV2X;LV16UNLA0050002892036","A/S \"Swedbank\", HABALV22,LV53HABA0551026219036;","A/S \"Baltic Trust Bank\", BATRLV2X, LV66BATR0051801848100","A/S \"Latvijas Krājbanka\";                                    UBALLV2X;                                      LV11UBAL1311139618001;",null,"A/S \"Swedbank\", HABALV22, LV92HABA0551007656317","A/S \"SEB banka\";                                      UNLALV2X;                                      LV56UNLA0050001529436;","A/S \"Swedbank\", HABALV22, LV69HABA0551021245461","A/S \"Swedbank\";                               HABALV22;                                               LV83HABA0551007655509;","A/S\" NORVIK banka\",LATBLV22;LV68LATB0002010116788;","\"TRASTA Komercbanka\";KBRBLV2X;                                       LV59KBRB1111251212001;","A/S \"SEB banka\";                                              LV82UNLA0050013885313;","A/S\"Swedbank\",HABALV22,         LV38HABA0001408033304","A/S \"Swedbank\";   HABALV22;                                          LV55HABA0551008850471;","A/S \"SEB banka\";UNLALV2X;LV98UNLA0050012883306","A/S\"SEB banka\";UNLALV2X;LV35UNLA0027801467286","A/S\"Swedbank\";HABALV22;                        LV25HABA0551008490268",null,"A/S \"GE Money Bank\";BATRLV2X;                LV24BATR0051802067300","A/S \"Swedbank\";HABALV22;                       LV83HABA0551017929458","Latvijas Krājbanka;UBALLV2X;               LV51UBAL1371131087001;","A/S \"NORVIK BANKA\";LATBLV22;                    LV16LATB0002010092116;    ","Krājbanka;UBALLV2X;                                 LV38UBAL1326130331001;","A/S \"Swedbank\";HABALV22;                                 LV64HABA0551032725695;","A/S \"Swedbank\";HABALV22;                      LV60HABA0551017079764;","A/S SEB banka;    UNLALV2X;                         LV51UNLA0029001466026;","A/S \"Swedbank\";HABALV22;                      LV98HABA0551000269659;","A/S \"SEB banka\";UNLALV2X;                                    LV43UNLA0013001468654;","A/S \"SEB banka\";UNLALV2X;                             LV43UNLA0006003467189;","A/S \"Parex banka;PARXLV22;                                  LV62PARX0012088400001;","A/S\"DNB Banka\";                         LV34RIKO0002013157572;","A/S \"Latvijas Krājbanka\";    UBALLV2X;                                 LV74UBAL3102170236006;",11,11,11,11,"A/S \"Swedbank\";                              HABALV22;                                          LV54HABA0551031084829;","A/S Latvijas Krājbanka;                                          UBALLV2X;                                             LV49UBAL4300124600001;","A/S''Swedbank\";                                          HABALV22;                              LV90HABA0551027518655;","A/S\"Swedbank\";                                           HABALV22;                                                   LV85HABA0551035535989;","A/S''SEBbanka\";                                                UNLALV2X;                                          LV20UNLA0050004229788;","A/S \"Swedbank\";                                       HABALV22;                                      LV34HABA0551011144899;","A/S \"SEB banka\";                               UNLALV2X;                                       LV05UNLA0011003467218;","A/S\"SEB banka\";                                 UNLALV2X;                                                 LV37UNLA0034110643100;","A/S''SEB banka\";                                     UNLALV2X;                                                LV73UNla0002039469305;","A/S\"Swedbank\";               HABALV22;                                  LV64HABA0551033199152;","A/S \"Swedbank\";                               HABALV22;                                LV33HABA0551002993910;","A/S \"SEB banka\";                                    LV50UNLA0016002467914;","A/S “Parex banka”                       PARXLV22;                                               LV94PARX0004910190002;","A/S \"SEB Banka\";                           UNLALV2X;                                        LV21UNLA0050014802576;"]
["Apmaksas termiņš",10,null,1,5,2,10,10,1,10,7,1,1,0,7,2,7,14,14,null,7,1,null,7,null,1,7,3,3,3,null,1,7,3,3,5,3,3,5,1,3,1,3,1,3,1,3,3,9,1,1,1]
["Izkraušanas vieta 1","Lubānas ielā 133, Rīga, LV-1021 (PVD 033156)","Maskavas ielā 250,Rīga,LV-1063","Rāmava,Rāmavas iela 10;","Rīgas raj., Mārupes pag., Daugavas ielā 27-1, LV-2169 (PVD 022880)","Veikals,Daugavas iela 102,Skrīveri,LV-5125;","Nometņu ielā 64, Rīga, LV-1002","\"Ozoli\", Mārupes novads, Rīgas rajons, LV-2167","Bukaišu 2,Rīga","\"Ādu ģērētava\" Mārupes pagasts, Rīgas rajons, LV-2167 (PVD 037187)","Granīta ielā 9a, Rīga , LV-1057","Gravas iela 2,Baldones nov.,LV-2125","Aploklciema iela 1;Rīga","Vaļņa iela 33-3,Cēsis,LV-4001","Dobeles šos.2,Jēlgava,LV-3007","\"Cepli\", Limbažu raj., Lēdurgas pag., LV-4012","Blaumaņa ielā 2,Sigulda,Rīgas rajons,LV-2150","Centra ielā 8,Gauja,Inčukalna pag.,Rīgas raj.,LV-2140","Mellužu ielā 1,Rīga,LV-1067",null,"Lubānas iela 43a,Rīga,LV-1035","Kastire,Liepu iela 2,Preiļi,Latvija,LV-5301","Viskaļu iela 3,Rīga.","Lielvārde,Parka 8,Lielvārdes novads","Maskavas iela 250,Rīga,LV-1063","Nometņu ielā 64, Rīga, LV-1002","Rīga,Līksnas 11,LV-1003","\"Ielejas\",Īslīces pagasts,Bauskas rajons,LV-3901","\"RIO\"Ropažu pag.,Rīgas raj.,LV-2135","\"Ievas\" Katvaru pag.,Limbažu raj.,LV-4060","Grīvas, Nākotne, Glūdas pag., Jelgavas raj., LV-3040","Rīgas ielā 9, Limbaži, LV-4001","Burtnieku nov.,Burtnieku pag.,Celmiņi-2.","1905.gada iela 33,Koknese pagasts,Kokneses novads,LV 5113",null,"Brīvbas gatve 216, Rīga, LV-1039","Krustpils ielā 89 a,Rīga,LV-1057.","Artilērijas ielā 40,Rīga,LV-1009;","Viskaļu ielā 3,Rīga,LV-1026","Tērbatas ielā 6, Valmiera, LV-4201","Rāmuļu iela 3a, Rīga, LV-1005",null,"Katlakalna ielā 13-18/16, Rīga, LV-1073","Jūrmalas iela14, Babītes pag .,LV-2107 ","\"Cerības\" Pūres pag., Tukuma rajons, LV-3124","Braslas ielā 22, Rīga, LV-1035","\"Veiksme\", Mucenieki, Ropažu pag., Rīgas raj.","Jūrmala;Dubulti;pr.16","Čiekurkalna 1.linija 84, Rīga, LV-1026","Smiltene,Daugavas 1","\"Turaudas\" Mārupes novads, LV-2167"]
["Izkraušanas vieta 2","Nēģu ielā 7, Riga, LV-1050 (PVD 024157)"]
["Izkraušanas vieta 3"]
["Izkraušanas vieta 4"]
["Izkraušanas vieta 5"]
["Izkraušanas vieta 6"]
["Izkraušanas vieta 7"]
["Izkraušanas vieta 8"]
["Izkraušanas vieta 9"]
["Izkraušanas vieta 10"]
["Autoboliļa reģistrācijas valsts numurs 1","FJ - 1189",null,null,null,null,null,null,null,null,null,null,null,null,null,null,null,null,null,null,null,null,null,null,null,null,null,null,null,null,null,"GN-4770"]
["Autoboliļa reģistrācijas valsts numurs 2","HG - 7645"]
["Autoboliļa reģistrācijas valsts numurs 3","HD - 8627"]
["Autoboliļa reģistrācijas valsts numurs 4"]
["Autoboliļa reģistrācijas valsts numurs 5"]
["Autoboliļa reģistrācijas valsts numurs 6"]
["Autoboliļa reģistrācijas valsts numurs 7"]
["Autoboliļa reģistrācijas valsts numurs 8"]
["Autoboliļa reģistrācijas valsts numurs 9"]
["Autoboliļa reģistrācijas valsts numurs 10"]
["Autoboliļa vadītaja vārds un uzvārds 1","Sergejs Ivanovs"]
["Autoboliļa vadītaja vārds un uzvārds 2","Sergejs Orlovs"]
["Autoboliļa vadītaja vārds un uzvārds 3","Aleksandrs Taroviks"]
["Autoboliļa vadītaja vārds un uzvārds 4","Viktors Ņikitins"]
["Autoboliļa vadītaja vārds un uzvārds 5"]
["Autoboliļa vadītaja vārds un uzvārds 6"]
["Autoboliļa vadītaja vārds un uzvārds 7"]
["Autoboliļa vadītaja vārds un uzvārds 8"]
["Autoboliļa vadītaja vārds un uzvārds 9"]
["Autoboliļa vadītaja vārds un uzvārds 10"]

{"sheet":"Cipari-vārdi","index":6,"n_rows":27,"n_cols":11,"rows_kept":27,"cut":false,"hidden":false,"merged":[]}
[{"$f":"PPR!L48","v":2348.2800000000002},"-- ОБРАБАТЫВАЕМОЕ ЧИСЛО № 1"]
[{"$f":"REPLACE(A14,1,2,UPPER(LEFT(A14,2)))","v":" Divi tūkstoši trīs simti četrdesmit astoņi lati 28 sant."},"-- РЕЗУЛЬТАТ № 1",null,"Чудесно переводит числа в слова"]
[0,{"$f":"\"\"","v":""}," desmit",{"$f":"\"\"","v":""},{"$f":"\"\"","v":""}," lats"," tūkstotis"," миллион"," миллиард"," триллион"," sant."]
[1," viens"," vienpadsmit",{"$f":"\"\"","v":""}," viens simts"," lati"," tūkstoši"," миллиона"," миллиарда"," триллиона"," sant."]
[2," divi"," divpadsmit"," divdesmit"," divi simti"," lati"," tūkstoši"," миллионов"," миллиардов"," триллионов"," sant."]
[3," trīs"," trīspadsmit"," trīsdesmit"," trīs simti"]
[4," četri"," četrpadsmit"," četrdesmit"," četri simti"]
[5," pieci"," piecpadsmit"," piecdesmit"," pieci simti"," одна"]
[6," seši"," sešpadsmit"," sešdesmit"," seši simti"," две"]
[7," septiņi"," septiņpadsmit"," septiņdesmit"," septiņi simti"]
[8," astoņi"," astoņpadsmit"," astoņdesmit"," astoņi simti"]
[9," deviņi"," deviņpadsmit"," deviņdesmit"," deviņi simti"]
[{"$f":"A1","v":2348.2800000000002},-1,{"$f":"A13-POWER(10,B13)*INT(A13/POWER(10,B13))","v":7.999999999992724E-2},{"$f":"C13","v":7.999999999992724E-2},{"$f":"ROUND(D13/POWER(10,B13-1),0)","v":8}]
[{"$f":"CONCATENATE(G26,G25,G24,H24,G23,G22,G21,H21,G20,G19,G18,H18,G17,G16,G15,H15,TEXT(I15,\" 00\"),J15)","v":" divi tūkstoši trīs simti četrdesmit astoņi lati 28 sant."},0,{"$f":"A13-POWER(10,B14)*INT(A13/POWER(10,B14))","v":0.28000000000020009},{"$f":"C14-D13","v":0.20000000000027285},{"$f":"D14/POWER(10,B14-1)","v":2.0000000000027285},"словами","коррекция для тысяч","склонения","копейки"]
[null,1,{"$f":"A13-POWER(10,B15)*INT(A13/POWER(10,B15))","v":8.2800000000002001},{"$f":"C15-D14-D13","v":8},8,{"$f":"IF(E16>=2,INDEX(B3:C12,E15+1,1),INDEX(B3:C12,E15+1,E16+1))","v":" astoņi"},{"$f":"F15","v":" astoņi"},{"$f":"IF(SUM(E15:E26)=0,\" 0 lati\",IF(E16<>1,IF(OR(E15>4,E15=0),F5,IF(E15=1,F3,F4)),F5))","v":" lati"},{"$f":"C14*100","v":28.000000000020009},{"$f":"IF(E14<>1,IF(OR(E13>4,E13=0),K5,IF(E13=1,K3,K4)),K5)","v":" sant."}]
["разряд",2,{"$f":"A13-POWER(10,B16)*INT(A13/POWER(10,B16))","v":48.2800000000002},{"$f":"C16-C15","v":40},4,{"$f":"IF(E16>=2,INDEX(D3:D12,E16+1),\"\")","v":" četrdesmit"},{"$f":"F16","v":" četrdesmit"}]
[null,3,{"$f":"A13-POWER(10,B17)*INT(A13/POWER(10,B17))","v":348.2800000000002},300,3,{"$f":"INDEX(E3:E12,E17+1)","v":" trīs simti"},{"$f":"F17","v":" trīs simti"}]
[null,4,{"$f":"A13-POWER(10,B18)*INT(A13/POWER(10,B18))","v":2348.2800000000002},2000,2,{"$f":"IF(E19>=2,INDEX(B3:C12,E18+1,1),INDEX(B3:C12,E18+1,E19+1))","v":" divi"},{"$f":"IF(F18=\" один\",F8,IF(F18=\" два\",F9,F18))","v":" divi"},{"$f":"IF(OR(E20<>0,E19<>0,E18<>0),IF(E19<>1,IF(OR(E18>4,E18=0),G5,IF(E18=1,G3,G4)),G5),\"\")","v":" tūkstoši"}]
[null,5,{"$f":"A13-POWER(10,B19)*INT(A13/POWER(10,B19))","v":2348.2800000000002},0,0,{"$f":"IF(E19>=2,INDEX(D3:D12,E19+1),\"\")","v":""},{"$f":"F19","v":""}]
[null,6,{"$f":"A13-POWER(10,B20)*INT(A13/POWER(10,B20))","v":2348.2800000000002},0,0,{"$f":"INDEX(E3:E12,E20+1)","v":""},""]
[null,7,{"$f":"A13-POWER(10,B21)*INT(A13/POWER(10,B21))","v":2348.2800000000002},0,0,{"$f":"IF(E22>=2,INDEX(B3:C12,E21+1,1),INDEX(B3:C12,E21+1,E22+1))","v":""},"",{"$f":"IF(OR(E21<>0,E22<>0,E23<>0),IF(E22<>1,IF(OR(E21>4,E21=0),H5,IF(E21=1,H3,H4)),H5),\"\")","v":""}]
[null,8,{"$f":"A13-POWER(10,B22)*INT(A13/POWER(10,B22))","v":2348.2800000000002},0,0,{"$f":"IF(E22>=2,INDEX(D3:D12,E22+1),\"\")","v":""},""]
[null,9,{"$f":"A13-POWER(10,B23)*INT(A13/POWER(10,B23))","v":2348.2800000000002},0,0,{"$f":"INDEX(E3:E12,E23+1)","v":""},""]
[null,10,{"$f":"A13-POWER(10,B24)*INT(A13/POWER(10,B24))","v":2348.2800000000002},0,0,{"$f":"IF(E25>=2,INDEX(B3:C12,E24+1,1),INDEX(B3:C12,E24+1,E25+1))","v":""},"",{"$f":"IF(OR(E24<>0,E25<>0,E26<>0),IF(E25<>1,IF(OR(E24>4,E24=0),I5,IF(E24=1,I3,I4)),I5),\"\")","v":""}]
[null,11,{"$f":"A13-POWER(10,B25)*INT(A13/POWER(10,B25))","v":2348.2800000000002},0,0,{"$f":"IF(E25>=2,INDEX(D3:D12,E25+1),\"\")","v":""},""]
[null,12,{"$f":"A13-POWER(10,B26)*INT(A13/POWER(10,B26))","v":2348.2800000000002},0,0,{"$f":"INDEX(E3:E12,E26+1)","v":""},""]
[null,"До триллионов еще не добрался !"]

{"sheet":"Cipari-vārdi_eiro","index":7,"n_rows":27,"n_cols":11,"rows_kept":27,"cut":false,"hidden":false,"merged":[]}
[{"$f":"PPR!M48","v":3341.29},"-- ОБРАБАТЫВАЕМОЕ ЧИСЛО № 1"]
[{"$f":"REPLACE(A14,1,2,UPPER(LEFT(A14,2)))","v":" Trīs  tūkstoši trīs simti četrdesmit vienseiro  29 cent."},"-- РЕЗУЛЬТАТ № 1",null,"Чудесно переводит числа в слова"]
[0,{"$f":"\"\"","v":""}," desmit",{"$f":"\"\"","v":""},{"$f":"\"\"","v":""},"eiro "," tūkstotis"," миллион"," миллиард"," триллион"," cent."]
[1," viens"," vienpadsmit",{"$f":"\"\"","v":""}," viens simts","eiro "," tūkstoši"," миллиона"," миллиарда"," триллиона"," cent."]
[2," divi"," divpadsmit "," divdesmit "," divi simti ","eiro "," tūkstoši"," миллионов"," миллиардов"," триллионов"," cent."]
[3," trīs "," trīspadsmit"," trīsdesmit"," trīs simti"]
[4," četri "," četrpadsmit"," četrdesmit"," četri simti"]
[5," pieci "," piecpadsmit"," piecdesmit"," pieci simti"," одна"]
[6," seši "," sešpadsmit"," sešdesmit"," seši simti"," две"]
[7," septiņi "," septiņpadsmit"," septiņdesmit"," septiņi simti"]
[8," astoņi "," astoņpadsmit"," astoņdesmit"," astoņi simti"]
[9," deviņi "," deviņpadsmit"," deviņdesmit"," deviņi simti"]
[{"$f":"A1","v":3341.29},-1,{"$f":"A13-POWER(10,B13)*INT(A13/POWER(10,B13))","v":8.9999999999690772E-2},{"$f":"C13","v":8.9999999999690772E-2},{"$f":"ROUND(D13/POWER(10,B13-1),0)","v":9}]
[{"$f":"CONCATENATE(G26,G25,G24,H24,G23,G22,G21,H21,G20,G19,G18,H18,G17,G16,G15,H15,TEXT(I15,\" 00\"),J15)","v":" trīs  tūkstoši trīs simti četrdesmit vienseiro  29 cent."},0,{"$f":"A13-POWER(10,B14)*INT(A13/POWER(10,B14))","v":0.28999999999996362},{"$f":"C14-D13","v":0.20000000000027285},{"$f":"D14/POWER(10,B14-1)","v":2.0000000000027285},"словами","коррекция для тысяч","склонения","копейки"]
[null,1,{"$f":"A13-POWER(10,B15)*INT(A13/POWER(10,B15))","v":1.2899999999999636},{"$f":"C15-D14-D13","v":1},1,{"$f":"IF(E16>=2,INDEX(B3:C12,E15+1,1),INDEX(B3:C12,E15+1,E16+1))","v":" viens"},{"$f":"F15","v":" viens"},{"$f":"IF(SUM(E15:E26)=0,\" 0 lati\",IF(E16<>1,IF(OR(E15>4,E15=0),F5,IF(E15=1,F3,F4)),F5))","v":"eiro "},{"$f":"C14*100","v":28.999999999996362},{"$f":"IF(E14<>1,IF(OR(E13>4,E13=0),K5,IF(E13=1,K3,K4)),K5)","v":" cent."}]
["разряд",2,{"$f":"A13-POWER(10,B16)*INT(A13/POWER(10,B16))","v":41.289999999999964},{"$f":"C16-C15","v":40},4,{"$f":"IF(E16>=2,INDEX(D3:D12,E16+1),\"\")","v":" četrdesmit"},{"$f":"F16","v":" četrdesmit"}]
[null,3,{"$f":"A13-POWER(10,B17)*INT(A13/POWER(10,B17))","v":341.28999999999996},300,3,{"$f":"INDEX(E3:E12,E17+1)","v":" trīs simti"},{"$f":"F17","v":" trīs simti"}]
[null,4,{"$f":"A13-POWER(10,B18)*INT(A13/POWER(10,B18))","v":3341.29},3000,3,{"$f":"IF(E19>=2,INDEX(B3:C12,E18+1,1),INDEX(B3:C12,E18+1,E19+1))","v":" trīs "},{"$f":"IF(F18=\" один\",F8,IF(F18=\" два\",F9,F18))","v":" trīs "},{"$f":"IF(OR(E20<>0,E19<>0,E18<>0),IF(E19<>1,IF(OR(E18>4,E18=0),G5,IF(E18=1,G3,G4)),G5),\"\")","v":" tūkstoši"}]
[null,5,{"$f":"A13-POWER(10,B19)*INT(A13/POWER(10,B19))","v":3341.29},0,0,{"$f":"IF(E19>=2,INDEX(D3:D12,E19+1),\"\")","v":""},{"$f":"F19","v":""}]
[null,6,{"$f":"A13-POWER(10,B20)*INT(A13/POWER(10,B20))","v":3341.29},0,0,{"$f":"INDEX(E3:E12,E20+1)","v":""},""]
[null,7,{"$f":"A13-POWER(10,B21)*INT(A13/POWER(10,B21))","v":3341.29},0,0,{"$f":"IF(E22>=2,INDEX(B3:C12,E21+1,1),INDEX(B3:C12,E21+1,E22+1))","v":""},"",{"$f":"IF(OR(E21<>0,E22<>0,E23<>0),IF(E22<>1,IF(OR(E21>4,E21=0),H5,IF(E21=1,H3,H4)),H5),\"\")","v":""}]
[null,8,{"$f":"A13-POWER(10,B22)*INT(A13/POWER(10,B22))","v":3341.29},0,0,{"$f":"IF(E22>=2,INDEX(D3:D12,E22+1),\"\")","v":""},""]
[null,9,{"$f":"A13-POWER(10,B23)*INT(A13/POWER(10,B23))","v":3341.29},0,0,{"$f":"INDEX(E3:E12,E23+1)","v":""},""]
[null,10,{"$f":"A13-POWER(10,B24)*INT(A13/POWER(10,B24))","v":3341.29},0,0,{"$f":"IF(E25>=2,INDEX(B3:C12,E24+1,1),INDEX(B3:C12,E24+1,E25+1))","v":""},"",{"$f":"IF(OR(E24<>0,E25<>0,E26<>0),IF(E25<>1,IF(OR(E24>4,E24=0),I5,IF(E24=1,I3,I4)),I5),\"\")","v":""}]
[null,11,{"$f":"A13-POWER(10,B25)*INT(A13/POWER(10,B25))","v":3341.29},0,0,{"$f":"IF(E25>=2,INDEX(D3:D12,E25+1),\"\")","v":""},""]
[null,12,{"$f":"A13-POWER(10,B26)*INT(A13/POWER(10,B26))","v":3341.29},0,0,{"$f":"INDEX(E3:E12,E26+1)","v":""},""]
[null,"До триллионов еще не добрался !"]

{"sheet":"Eiro kurss","index":8,"n_rows":2,"n_cols":2,"rows_kept":2,"cut":false,"hidden":false,"merged":[]}
[]
["Eiro kurss",0.70280399999999998]

{"sheet":"Лист1","index":9,"n_rows":0,"n_cols":0,"rows_kept":0,"cut":false,"hidden":false,"merged":[]}